bitfinex/quotes_SOLUSD_20260309
["timestamp","ask_amount","ask_price","bid_price","bid_amount"]
[1773084731642,10.92453347,86.83,86.748,2.1792318]
[1773084731849,10.92453347,86.83,86.747,57.63888088]
[1773084731850,40.30447148,86.839,86.754,2.1792318]
[1773084732053,40.30447148,86.839,86.756,2.32139337]
[1773084732257,40.30447148,86.839,86.764,2.1792318]
[1773084732860,10.92453347,86.83,86.764,2.1792318]
[1773084733660,11.51688951,86.829,86.766,2.1792318]
[1773084734155,7.1818253,86.87,86.768,2.1792318]
[1773084734354,10.92453347,86.85,86.774,2.1792318]
[1773084734658,10.92453347,86.84,86.774,2.1792318]
[1773084735157,10.92453347,86.83,86.774,2.1792318]
[1773084735853,40.3091133,86.829,86.776,2.1792318]
[1773084736156,10.92453347,86.82,86.776,2.1792318]
[1773084736362,40.3091133,86.829,86.776,2.1792318]
[1773084736763,11.51569589,86.838,86.776,2.1792318]
[1773084737054,10.92453347,86.83,86.776,2.1792318]
[1773084737264,10.92453347,86.83,86.721,92.24945986]
[1773084737265,10.92453347,86.81,86.739,51.82]
[1773084737440,10.92453347,86.79,86.736,2.1792318]
[1773084737850,11.52087005,86.799,86.738,2.1792318]
[1773084738148,10.92453347,86.79,86.738,2.1792318]
[1773084738542,11.52087005,86.799,86.738,2.1792318]
[1773084738742,40.32304519,86.799,86.738,2.1792318]
[1773084738948,10.92453347,86.79,86.738,2.1792318]
[1773084739466,40.32304519,86.799,86.738,2.1792318]
[1773084739766,10.92453347,86.78,86.738,2.1792318]
[1773084739945,10.92453347,86.78,86.71,0.2]
[1773084739946,40.33233846,86.779,86.739,11.52883939]
[1773084740363,40.33233846,86.779,86.728,2.1792318]
[1773084740547,11.52302706,86.783,86.73,2.1792318]
[1773084741247,10.92453347,86.78,86.73,2.1792318]
[1773084741650,11.52089734,86.799,86.73,2.1792318]
[1773084741859,7.16228942,86.803,86.734,2.1792318]
[1773084742555,7.16228942,86.803,86.74,2.1792318]
[1773084742751,7.16228942,86.803,86.742,2.1792318]
[1773084742971,11.52047187,86.802,86.742,2.1792318]
[1773084743850,40.32165156,86.802,86.743,40.34907714]
[1773084744069,40.32165156,86.802,86.744,2.1792318]
[1773084744267,11.52047187,86.802,86.744,2.1792318]
[1773084744769,18.6827295,86.803,86.744,2.1792318]
[1773084745353,7.16228942,86.803,86.744,2.1792318]
[1773084745660,11.52047187,86.802,86.744,2.1792318]
[1773084746464,11.52047187,86.802,86.746,2.1792318]
[1773084746771,7.16228942,86.803,86.746,2.1792318]
[1773084747070,10.92453347,86.8,86.746,2.1792318]
[1773084747271,10.92453347,86.79,86.746,2.1792318]
[1773084747582,11.52047187,86.802,86.746,2.1792318]
[1773084747957,10.92453347,86.8,86.746,2.1792318]
[1773084748152,7.16228942,86.803,86.746,2.1792318]
[1773084748351,7.16228942,86.803,86.748,2.1792318]
[1773084749473,11.52047187,86.802,86.748,2.1792318]
[1773084749779,7.16228942,86.803,86.748,2.1792318]
[1773084749978,11.52047187,86.802,86.748,2.1792318]
[1773084750276,11.52047187,86.802,86.747,40.34721661]
[1773084750277,10.92453347,86.79,86.747,40.34721661]
[1773084750475,11.52219751,86.789,86.737,40.35186828]
[1773084750770,40.32769129,86.789,86.737,40.35186828]
[1773084751075,11.52219751,86.789,86.738,2.1792318]
[1773084751254,11.52047187,86.802,86.738,2.1792318]
[1773084751773,7.16228942,86.803,86.738,2.1792318]
[1773084751959,11.52047187,86.802,86.738,2.1792318]
[1773084752575,7.16228942,86.803,86.74,2.1792318]
[1773084752780,11.52047187,86.802,86.74,2.1792318]
[1773084753079,10.92453347,86.8,86.74,2.1792318]
[1773084753463,10.92453347,86.79,86.74,2.1792318]
[1773084753664,10.92453347,86.8,86.74,2.1792318]
[1773084754774,10.92453347,86.8,86.73,46.11998624]
[1773084754775,11.52087005,86.799,86.742,2.1792318]
[1773084754962,40.32304519,86.799,86.742,2.1792318]
[1773084755161,10.92453347,86.77,86.731,28.8247197]
[1773084755365,40.32304519,86.799,86.719,28.82847742]
[1773084755366,0.28432314,86.793,86.719,28.82847742]
[1773084755581,10.92453347,86.76,86.719,28.82847742]
[1773084755759,10.92453347,86.76,86.711,11.53256218]
[1773084755956,10.92453347,86.74,86.71,0.2]
[1773084756161,10.92453347,86.75,86.711,11.53256218]
[1773084756356,10.92453347,86.78,86.712,2.1792318]
[1773084756573,10.92453347,86.79,86.712,2.1792318]
[1773084756780,40.32769129,86.789,86.714,2.1792318]
[1773084757573,11.52100278,86.798,86.721,0.28432314]
[1773084757773,11.52100278,86.798,86.726,2.1792318]
[1773084758278,10.92453347,86.83,86.731,2.1792318]
[1773084758581,10.92453347,86.83,86.735,2.1792318]
[1773084758779,11.5206046,86.801,86.74,2.1792318]
[1773084760179,10.92453347,86.8,86.74,2.1792318]
[1773084760378,40.3221161,86.801,86.74,2.1792318]
[1773084760979,11.5206046,86.801,86.742,2.1792318]
[1773084761171,28.79841144,86.811,86.742,2.1792318]
[1773084761369,11.52004563,86.806,86.742,2.1792318]
[1773084761965,11.5206046,86.801,86.742,2.1792318]
[1773084762277,11.51995089,86.806,86.742,2.1792318]
[1773084762589,10.92453347,86.82,86.746,2.1792318]
[1773084763282,11.51821605,86.819,86.748,2.1792318]
[1773084764580,10.92453347,86.78,86.732,2.1792318]
[1773084765168,40.33233846,86.779,86.71,0.2]
[1773084765486,10.92453347,86.77,86.712,2.1792318]
[1773084765684,10.92453347,86.76,86.712,2.1792318]
[1773084765992,11.52352527,86.779,86.712,2.1792318]
[1773084766292,11.52229783,86.789,86.715,2.32139337]
[1773084766872,10.92453347,86.78,86.715,2.1792318]
[1773084767077,10.92453347,86.78,86.711,40.36396765]
[1773084767078,40.32779161,86.789,86.717,2.1792318]
[1773084767390,10.92453347,86.78,86.717,2.1792318]
[1773084768179,40.32779161,86.789,86.717,2.1792318]
[1773084768380,10.92453347,86.78,86.717,2.1792318]
[1773084768785,40.32779161,86.789,86.717,2.1792318]
[1773084769181,40.32779161,86.789,86.719,2.1792318]
[1773084769385,10.92453347,86.78,86.719,2.1792318]
[1773084770191,10.92453347,86.77,86.719,2.1792318]
[1773084770398,10.92453347,86.75,86.712,11.53240726]
[1773084770572,10.92453347,86.75,86.71,0.2]
[1773084770775,10.92453347,86.74,86.71,0.2]
[1773084771081,0.28432314,86.754,86.71,0.2]
[1773084771400,10.92453347,86.73,86.683,2.1792318]
[1773084771898,0.28432314,86.744,86.642,2.1792318]
[1773084772094,0.28432314,86.739,86.645,2.1792318]
[1773084772277,0.28432314,86.752,86.645,2.1792318]
[1773084772477,0.28432314,86.749,86.65,2.46355494]
[1773084772685,40.34442612,86.753,86.662,3.69383402]
[1773084772885,40.34442612,86.753,86.675,2.1792318]
[1773084772886,11.52697889,86.753,86.675,2.1792318]
[1773084773094,10.92453347,86.75,86.675,2.1792318]
[1773084773292,10.92453347,86.75,86.666,0.14216157]
[1773084773293,11.5275104,86.749,86.68,2.1792318]
[1773084773498,10.92453347,86.73,86.68,2.1792318]
[1773084773678,10.92453347,86.72,86.676,40.38026673]
[1773084773885,10.92453347,86.72,86.676,11.53721906]
[1773084774083,97.98383841,86.749,86.676,42.55949853]
[1773084774380,0.14216157,86.744,86.677,2.1792318]
[1773084774586,10.92453347,86.73,86.677,2.1792318]
[1773084777301,0.28432314,86.742,86.679,2.1792318]
[1773084777504,11.52684602,86.754,86.679,2.1792318]
[1773084778085,40.34396108,86.754,86.679,2.1792318]
[1773084778599,11.52684602,86.754,86.682,2.1792318]
[1773084778998,10.92453347,86.75,86.682,2.1792318]
[1773084779305,11.52883939,86.739,86.684,2.1792318]
[1773084780686,11.5275104,86.749,86.684,2.1792318]
[1773084780900,11.52485334,86.769,86.684,2.1792318]
[1773084781102,28.81527821,86.81,86.698,3.69383402]
[1773084781297,11.52087005,86.799,86.712,2.1792318]
[1773084781498,7.19380648,86.819,86.724,2.1792318]
[1773084781802,28.7974834,86.814,86.736,2.1792318]
[1773084782001,11.51834872,86.818,86.736,2.1792318]
[1773084782709,40.31422054,86.818,86.736,2.1792318]
[1773084783388,11.51834872,86.818,86.741,2.1792318]
[1773084783705,7.19380648,86.819,86.741,2.1792318]
[1773084783907,28.77962862,86.867,86.754,3.69383402]
[1773084784110,40.28776977,86.875,86.76,4.82477569]
[1773084784410,11.51079136,86.875,86.785,2.1792318]
[1773084784707,11.51079136,86.875,86.784,0.14216157]
[1773084784708,11.50946653,86.885,86.8,2.1792318]
[1773084784888,10.92453347,86.87,86.802,2.1792318]
[1773084785206,10.92453347,86.86,86.802,2.1792318]
[1773084785402,10.92453347,86.86,86.803,40.32118704]
[1773084785403,11.51291173,86.859,86.803,40.32118704]
[1773084785609,11.51291173,86.859,86.804,2.1792318]
[1773084786105,0.28432314,86.875,86.803,40.32118704]
[1773084786106,11.50800957,86.896,86.807,2.1792318]
[1773084787196,40.2780335,86.896,86.807,2.1792318]
[1773084787391,40.2780335,86.896,86.811,3.69383402]
[1773084787595,40.2780335,86.896,86.812,2.1792318]
[1773084788201,10.90316045,86.89,86.812,2.1792318]
[1773084788599,10.90316045,86.87,86.812,2.1792318]
[1773084788889,0.28432314,86.879,86.809,2.1792318]
[1773084789411,40.56560154,86.889,86.811,2.1792318]
[1773084789807,10.90316045,86.87,86.811,2.1792318]
[1773084790010,40.2812784,86.889,86.81,11.5194102]
[1773084790011,10.90316045,86.85,86.81,11.5194102]
[1773084790192,10.90316045,86.87,86.811,2.1792318]
[1773084790393,10.90316045,86.85,86.766,2.1792318]
[1773084790593,10.90316045,86.84,86.766,2.1792318]
[1773084791009,10.90316045,86.88,86.76,11.52600159]
[1773084791010,10.90316045,86.8,86.76,11.52600159]
[1773084791306,10.90316045,86.81,86.761,2.1792318]
[1773084791499,11.51821605,86.819,86.763,2.1792318]
[1773084791912,11.51821605,86.819,86.762,40.34024111]
[1773084791913,10.90316045,86.85,86.766,2.1792318]
[1773084792215,10.90316045,86.84,86.77,2.1792318]
[1773084792407,10.90316045,86.85,86.77,2.1792318]
[1773084792594,11.51264664,86.861,86.772,2.1792318]
[1773084792790,18.69751384,86.862,86.784,2.1792318]
[1773084792995,10.90316045,86.86,86.784,2.1792318]
[1773084793619,40.29519105,86.859,86.786,2.1792318]
[1773084794331,10.90316045,86.84,86.785,11.52272858]
[1773084794508,10.90316045,86.82,86.78,11.5233179]
[1773084795092,10.90316045,86.82,86.775,2.1792318]
[1773084795093,10.90316045,86.82,86.775,13.70328441]
[1773084795301,10.90316045,86.8,86.75,2.1792318]
[1773084795610,10.90316045,86.8,86.751,11.52724464]
[1773084795802,10.90316045,86.8,86.751,42.52458804]
[1773084796003,10.90316045,86.8,86.752,2.1792318]
[1773084796200,0.28432314,86.818,86.752,2.1792318]
[1773084796403,10.90316045,86.81,86.752,2.1792318]
[1773084797012,0.28432314,86.818,86.752,2.1792318]
[1773084797213,10.90316045,86.81,86.752,2.1792318]
[1773084797700,40.31840016,86.809,86.754,2.1792318]
[1773084797901,11.5195429,86.809,86.754,2.1792318]
[1773084798125,11.51821605,86.819,86.754,2.1792318]
[1773084798301,10.90316045,86.8,86.754,2.1792318]
[1773084798501,10.90316045,86.79,86.754,2.1792318]
[1773084799118,10.90316045,86.78,86.729,11.53016868]
[1773084799311,10.90316045,86.77,86.729,11.53016868]
[1773084799812,11.52485334,86.769,86.718,2.1792318]
[1773084800015,10.90316045,86.76,86.718,2.1792318]
[1773084800415,11.52485334,86.769,86.718,2.1792318]
[1773084800615,10.90316045,86.76,86.718,2.1792318]
[1773084800922,10.90316045,86.75,86.706,11.53318755]
[1773084801302,0.28432314,86.768,86.706,11.53318755]
[1773084801504,10.90316045,86.76,86.707,2.1792318]
[1773084801720,10.90316045,86.75,86.707,2.1792318]
[1773084801926,11.5275104,86.749,86.708,11.5329612]
[1773084802223,10.90316045,86.73,86.657,2.1792318]
[1773084802427,10.90316045,86.72,86.657,2.1792318]
[1773084802916,10.90316045,86.72,86.656,40.3895864]
[1773084802917,10.90316045,86.7,86.656,40.3895864]
[1773084803116,10.90316045,86.69,86.656,11.53988183]
[1773084803721,10.90316045,86.69,86.65,11.74058757]
[1773084803922,11.53548893,86.689,86.65,11.74058757]
[1773084804132,11.53473386,86.695,86.651,2.1792318]
[1773084804828,22.4372293,86.7,86.651,2.1792318]
[1773084805122,10.90316045,86.69,86.651,2.1792318]
[1773084805826,11.53506763,86.693,86.653,2.1792318]
[1773084806013,11.81715133,86.709,86.653,2.1792318]
[1773084806415,40.64922181,86.709,86.653,2.1792318]
[1773084806614,10.90316045,86.7,86.653,2.1792318]
[1773084806929,40.36489867,86.709,86.653,2.1792318]
[1773084807128,18.09107757,86.73,86.653,2.1792318]
[1773084807313,10.90316045,86.72,86.653,2.1792318]
[1773084807932,40.36024399,86.719,86.655,2.1792318]
[1773084809233,11.53016868,86.729,86.655,2.1792318]
[1773084809414,10.90316045,86.72,86.655,2.1792318]
[1773084810034,11.53149828,86.719,86.657,2.1792318]
[1773084810236,11.53076661,86.725,86.657,2.1792318]
[1773084810436,7.18791712,86.73,86.662,2.1792318]
[1773084810615,11.53016868,86.729,86.662,2.1792318]
[1773084810935,40.35559039,86.729,86.662,2.1792318]
[1773084811128,10.90316045,86.72,86.662,2.1792318]
[1773084811515,10.90316045,86.7,86.662,2.1792318]
[1773084811915,10.90316045,86.71,86.662,2.1792318]
[1773084812116,11.53282819,86.709,86.664,2.1792318]
[1773084812537,10.90316045,86.7,86.663,11.53894972]
[1773084813032,10.90316045,86.7,86.652,31.02996537]
[1773084813236,10.90316045,86.69,86.653,11.54028135]
[1773084813446,10.90316045,86.68,86.65,0.2]
[1773084813621,10.90316045,86.67,86.65,0.2]
[1773084813824,10.90316045,86.67,86.64,0.2]
[1773084814139,11.53815089,86.669,86.64,0.2]
[1773084814337,10.90316045,86.66,86.63,0.2]
[1773084814540,40.38352812,86.669,86.63,0.2]
[1773084814729,10.90316045,86.66,86.63,0.2]
[1773084814925,10.90316045,86.65,86.63,0.2]
[1773084816032,11.53948233,86.659,86.63,0.2]
[1773084816366,10.90316045,86.65,86.63,0.2]
[1773084816723,40.38818817,86.659,86.63,0.2]
[1773084817227,10.90316045,86.65,86.63,1e-08]
[1773084817931,40.38818817,86.659,86.63,1e-08]
[1773084818139,22.43984711,86.68,86.634,2.1792318]
[1773084818329,11.53668666,86.68,86.634,2.1792318]
[1773084819232,10.90316045,86.67,86.632,11.54307632]
[1773084819435,10.90316045,86.66,86.63,1e-08]
[1773084819632,0.28432314,86.679,86.63,1e-08]
[1773084819633,10.90316045,86.65,86.63,1e-08]
[1773084820035,40.37933501,86.678,86.631,2.1792318]
[1773084820234,10.90316045,86.67,86.631,2.1792318]
[1773084820436,40.37933501,86.678,86.631,2.1792318]
[1773084821144,11.53695286,86.678,86.631,2.1792318]
[1773084821442,47.0880584,86.681,86.631,2.1792318]
[1773084821651,18.24667448,86.681,86.631,2.1792318]
[1773084821859,6.70999991,86.681,86.631,2.1792318]
[1773084822063,11.53668666,86.68,86.631,2.1792318]
[1773084822230,6.70999991,86.681,86.633,2.1792318]
[1773084822430,11.53668666,86.68,86.633,2.1792318]
[1773084822750,6.70999991,86.681,86.633,2.1792318]
[1773084822933,11.53203021,86.715,86.636,2.1792318]
[1773084823133,10.90316045,86.73,86.64,3.69383402]
[1773084823434,11.52923814,86.736,86.655,2.1792318]
[1773084823633,40.3523335,86.736,86.655,2.1792318]
[1773084824132,10.90316045,86.73,86.657,2.1792318]
[1773084824326,10.90316045,86.74,86.657,2.1792318]
[1773084825329,10.90316045,86.74,86.644,4.84798202]
[1773084825330,10.90316045,86.67,86.632,2.1792318]
[1773084825529,1.154148,86.669,86.632,2.1792318]
[1773084826353,1.154148,86.669,86.6,46.18911545]
[1773084826354,11.53828402,86.668,86.633,13.72217732]
[1773084826531,1.154148,86.667,86.634,2.1792318]
[1773084826847,10.90316045,86.69,86.634,2.1792318]
[1773084827051,1.154148,86.689,86.634,2.1792318]
[1773084828251,11.535622,86.688,86.636,2.1792318]
[1773084828454,1.154148,86.687,86.636,2.1792318]
[1773084829757,28.81246542,86.768,86.641,2.1792318]
[1773084829960,28.81246542,86.768,86.666,4.82477569]
[1773084830151,40.33233846,86.779,86.677,3.69383402]
[1773084830339,10.90316045,86.76,86.684,2.1792318]
[1773084830660,10.90316045,86.75,86.684,2.1792318]
[1773084831641,40.3462864,86.749,86.686,2.1792318]
[1773084832853,46.09870674,86.771,86.686,2.1792318]
[1773084832854,10.90316045,86.78,86.686,2.1792318]
[1773084833057,11.52312691,86.782,86.689,2.1792318]
[1773084833241,10.90316045,86.78,86.689,2.1792318]
[1773084833441,0.28432314,86.779,86.689,2.1792318]
[1773084833762,40.33233846,86.779,86.694,2.1792318]
[1773084834460,0.28432314,86.778,86.694,2.1792318]
[1773084834644,10.90316045,86.77,86.694,2.1792318]
[1773084835141,0.28432314,86.769,86.694,2.1792318]
[1773084835338,10.90316045,86.77,86.694,2.1792318]
[1773084835541,40.33233846,86.779,86.694,2.1792318]
[1773084835962,40.33233846,86.779,86.696,2.1792318]
[1773084836370,11.52352527,86.779,86.699,2.1792318]
[1773084836543,7.20229935,86.783,86.706,2.1792318]
[1773084836744,7.20229935,86.783,86.71,2.1792318]
[1773084837050,11.52312691,86.782,86.71,2.1792318]
[1773084837362,40.33094419,86.782,86.71,2.1792318]
[1773084837747,10.90316045,86.78,86.71,2.1792318]
[1773084838173,40.33233846,86.779,86.712,2.1792318]
[1773084838461,10.90316045,86.74,86.7,11.53402537]
[1773084838667,0.28432314,86.758,86.7,11.53402537]
[1773084838668,10.90316045,86.75,86.7,11.53402537]
[1773084839046,10.90316045,86.75,86.7,40.3690888]
[1773084839241,132.52054066,86.779,86.701,2.1792318]
[1773084839242,10.90316045,86.76,86.701,2.1792318]
[1773084839470,10.90316045,86.75,86.701,2.1792318]
[1773084839668,10.90316045,86.73,86.654,2.1792318]
[1773084839853,10.90316045,86.72,86.654,2.1792318]
[1773084840055,10.90316045,86.71,86.654,2.1792318]
[1773084840245,3.69383402,86.751,86.654,2.1792318]
[1773084840246,11.53415841,86.699,86.655,40.3900525]
[1773084840440,10.90316045,86.7,86.655,42.5692843]
[1773084840964,0.28432314,86.716,86.643,11.54161328]
[1773084840965,10.90316045,86.69,86.643,11.54161328]
[1773084841143,10.90316045,86.68,86.63,2.17923181]
[1773084841344,10.90316045,86.67,86.632,2.1792318]
[1773084841544,0.28432314,86.679,86.632,2.1792318]
[1773084841749,10.90316045,86.65,86.604,2.1792318]
[1773084841945,10.90316045,86.65,86.51,0.2]
[1773084841946,7.20180627,86.699,86.606,2.1792318]
[1773084842149,10.90316045,86.66,86.606,2.1792318]
[1773084842344,11.54081408,86.649,86.596,2.1792318]
[1773084843167,11.82380547,86.659,86.596,2.1792318]
[1773084843468,11.53948233,86.659,86.596,2.1792318]
[1773084843676,40.38818817,86.659,86.596,2.1792318]
[1773084843879,10.90316045,86.65,86.596,2.1792318]
[1773084844175,40.38818817,86.659,86.595,11.54801085]
[1773084844348,86.5571046,86.648,86.582,11.54974475]
[1773084844552,86.5571046,86.648,86.582,2.1792318]
[1773084844553,10.90316045,86.62,86.582,2.1792318]
[1773084844756,10.90316045,86.62,86.577,11.55036327]
[1773084844757,10.90316045,86.61,86.57,0.2]
[1773084844973,10.90316045,86.62,86.571,2.1792318]
[1773084846291,11.54361176,86.628,86.573,2.1792318]
[1773084846448,10.90316045,86.64,86.573,2.1792318]
[1773084846651,40.38399408,86.668,86.573,2.1792318]
[1773084846849,10.90316045,86.65,86.576,2.1792318]
[1773084847275,0.14216157,86.639,86.576,2.1792318]
[1773084847473,10.90316045,86.63,86.576,2.1792318]
[1773084847986,0.14216157,86.639,86.572,40.42877604]
[1773084847987,10.90316045,86.62,86.572,11.55107887]
[1773084848569,10.90316045,86.61,86.571,0.6967]
[1773084848948,11.54481118,86.619,86.573,2.1792318]
[1773084849148,11.82780165,86.629,86.573,2.1792318]
[1773084849376,10.90316045,86.61,86.571,0.6967]
[1773084849578,10.97784479,86.6,86.571,0.6967]
[1773084850075,10.97784479,86.61,86.571,0.6967]
[1773084850287,0.28432314,86.609,86.572,11.55107887]
[1773084850489,0.28432314,86.619,86.572,11.55107887]
[1773084850776,10.97784479,86.61,86.572,11.55107887]
[1773084850992,11.54433797,86.623,86.573,2.1792318]
[1773084851478,10.97784479,86.62,86.573,2.1792318]
[1773084851696,7.21170899,86.628,86.573,2.1792318]
[1773084851859,10.97784479,86.66,86.573,2.1792318]
[1773084852284,7.21056118,86.674,86.573,2.1792318]
[1773084852285,0.14216157,86.673,86.573,2.1792318]
[1773084852464,10.97784479,86.63,86.573,2.1792318]
[1773084852875,11.54347851,86.629,86.575,2.1792318]
[1773084853272,11.54262041,86.636,86.575,2.1792318]
[1773084853986,10.97784479,86.65,86.575,2.1792318]
[1773084854281,10.97784479,86.63,86.575,2.1792318]
[1773084854478,10.97784479,86.62,86.575,2.1792318]
[1773084854663,10.97784479,86.62,86.574,11.55081202]
[1773084854868,10.97784479,86.61,86.574,11.55081202]
[1773084855082,10.97784479,86.61,86.571,0.6967]
[1773084855280,10.97784479,86.6,86.571,0.6967]
[1773084855469,10.97784479,86.59,86.571,0.6967]
[1773084855668,10.97784479,86.6,86.571,0.6967]
[1773084855885,10.97784479,86.59,86.571,0.6967]
[1773084856584,10.97784479,86.6,86.571,0.6967]
[1773084856785,0.28432314,86.609,86.572,11.55107887]
[1773084857006,10.97784479,86.6,86.571,0.6967]
[1773084857281,0.28432314,86.599,86.56,2.3792318]
[1773084857485,10.97784479,86.58,86.56,0.2]
[1773084857667,10.97784479,86.58,86.554,11.55343991]
[1773084857668,10.97784479,86.58,86.551,11.55388152]
[1773084857875,10.97784479,86.58,86.548,2.1792318]
[1773084858076,10.97784479,86.57,86.53,2.3792318]
[1773084858275,10.97784479,86.57,86.536,11.55585776]
[1773084858471,10.97784479,86.57,86.53,2.3792318]
[1773084858669,0.28432314,86.579,86.544,2.4404314]
[1773084858872,11.54627748,86.608,86.547,2.1792318]
[1773084859267,10.97784479,86.6,86.547,2.1792318]
[1773084859467,0.28432314,86.607,86.547,2.1792318]
[1773084859668,11.54627748,86.608,86.547,2.1792318]
[1773084859887,10.97784479,86.61,86.547,2.1792318]
[1773084860086,10.97784479,86.6,86.547,2.1792318]
[1773084860776,10.97784479,86.61,86.547,2.1792318]
[1773084861376,40.41150457,86.609,86.549,2.1792318]
[1773084861685,10.97784479,86.6,86.549,2.1792318]
[1773084861895,10.97784479,86.59,86.549,2.1792318]
[1773084862089,10.97784479,86.57,86.544,0.2611996]
[1773084862598,10.97784479,86.55,86.511,2.1792318]
[1773084862899,10.97784479,86.55,86.468,4.82477569]
[1773084862900,10.97784479,86.56,86.525,11.55733263]
[1773084863280,10.97784479,86.55,86.522,2.1792318]
[1773084863973,10.97784479,86.55,86.512,11.5590629]
[1773084864174,10.97784479,86.54,86.53,1e-08]
[1773084864790,51.40755484,86.57,86.53,2.17923181]
[1773084864975,10.97784479,86.56,86.53,2.17923181]
[1773084865392,11.55281368,86.559,86.531,11.55655198]
[1773084865580,11.55281368,86.559,86.532,2.1792318]
[1773084866497,10.97784479,86.57,86.532,2.1792318]
[1773084866689,6.38999998,86.577,86.532,2.1792318]
[1773084866690,11.55054518,86.576,86.532,2.1792318]
[1773084866898,6.38999998,86.577,86.532,2.1792318]
[1773084867095,17.9405411,86.577,86.532,2.1792318]
[1773084867281,10.97784479,86.57,86.532,2.1792318]
[1773084867480,11.55147916,86.569,86.532,2.1792318]
[1773084867676,10.97784479,86.56,86.53,1e-08]
[1773084867905,40.43017707,86.569,86.531,2.1792318]
[1773084868205,11.55147916,86.569,86.531,2.1792318]
[1773084868782,40.43017707,86.569,86.531,2.1792318]
[1773084869784,40.43017707,86.569,86.53,11.5566613]
[1773084869785,11.55147916,86.569,86.533,2.1792318]
[1773084870299,6.38999998,86.577,86.533,2.1792318]
[1773084870485,11.55054518,86.576,86.533,2.1792318]
[1773084870886,40.42690814,86.576,86.533,2.1792318]
[1773084871084,10.97784479,86.57,86.533,2.1792318]
[1773084871901,40.42690814,86.576,86.535,2.1792318]
[1773084872094,10.97784479,86.56,86.53,1e-08]
[1773084872298,0.28432314,86.575,86.531,2.1792318]
[1773084872496,10.97784479,86.57,86.531,2.1792318]
[1773084873802,10.97784479,86.57,86.53,11.55666643]
[1773084873803,40.71450021,86.569,86.53,1e-08]
[1773084874013,10.97784479,86.56,86.53,1e-08]
[1773084874308,10.97784479,86.55,86.53,1e-08]
[1773084874609,10.97784479,86.54,86.506,11.5598898]
[1773084874801,144.6778127,86.569,86.486,11.56246612]
[1773084874802,10.97784479,86.52,86.486,11.56246612]
[1773084874994,10.97784479,86.51,86.486,11.56246612]
[1773084875193,10.97784479,86.5,86.49,1e-08]
[1773084875400,10.97784479,86.5,86.48,1e-08]
[1773084875600,0.28432314,86.489,86.404,46.29376242]
[1773084875791,10.97784479,86.49,86.406,2.1792318]
[1773084876107,3.69383402,86.514,86.375,1.418942]
[1773084876108,10.97784479,86.46,86.408,2.1792318]
[1773084876489,10.97784479,86.48,86.408,2.1792318]
[1773084876692,10.97784479,86.48,86.41,2.1792318]
[1773084877014,10.97784479,86.48,86.411,2.1792318]
[1773084877189,10.97784479,86.47,86.411,2.1792318]
[1773084877391,40.4675739,86.489,86.411,2.1792318]
[1773084877596,10.97784479,86.48,86.411,2.1792318]
[1773084877996,10.97784479,86.47,86.413,2.1792318]
[1773084878308,11.56350096,86.479,86.413,2.1792318]
[1773084878615,11.56350096,86.479,86.417,2.1792318]
[1773084879316,10.97784479,86.48,86.417,2.1792318]
[1773084879895,10.97784479,86.47,86.419,2.1792318]
[1773084880303,11.56229765,86.488,86.419,2.1792318]
[1773084880502,10.97784479,86.47,86.419,2.1792318]
[1773084880712,10.97784479,86.48,86.419,2.1792318]
[1773084881504,11.56229765,86.488,86.419,2.1792318]
[1773084881730,11.56216397,86.489,86.424,2.1792318]
[1773084881907,10.97784479,86.48,86.428,2.1792318]
[1773084882804,0.28432314,86.501,86.418,2.1792318]
[1773084882805,10.97784479,86.45,86.418,2.1792318]
[1773084883016,10.97784479,86.47,86.418,2.1792318]
[1773084883224,283.18788645,86.515,86.418,2.1792318]
[1773084883435,10.97784479,86.48,86.418,2.1792318]
[1773084883642,10.97784479,86.49,86.423,2.1792318]
[1773084883951,10.97784479,86.49,86.422,0.28432314]
[1773084883952,10.97784479,86.51,86.436,2.1792318]
[1773084884154,10.97784479,86.49,86.436,2.1792318]
[1773084884343,10.97784479,86.5,86.436,2.1792318]
[1773084884659,10.97784479,86.48,86.436,2.1792318]
[1773084884864,0.14216157,86.501,86.424,2.1792318]
[1773084884865,10.97784479,86.47,86.424,2.1792318]
[1773084885032,10.97784479,86.47,86.426,2.1792318]
[1773084885352,3.69383402,86.512,86.426,2.1792318]
[1773084885353,10.97784479,86.48,86.426,2.1792318]
[1773084885544,10.97784479,86.49,86.426,2.1792318]
[1773084886059,11.56216397,86.489,86.428,2.1792318]
[1773084886364,10.97784479,86.48,86.428,2.1792318]
[1773084886659,40.4675739,86.489,86.428,2.1792318]
[1773084887161,10.97784479,86.46,86.428,2.1792318]
[1773084887456,10.97784479,86.46,86.408,2.1792318]
[1773084887629,10.97784479,86.45,86.408,2.1792318]
[1773084888034,10.97784479,86.45,86.409,11.57286856]
[1773084888035,40.48629827,86.449,86.409,11.57286856]
[1773084888554,10.97784479,86.44,86.4,2.1792318]
[1773084888742,10.97784479,86.44,86.391,2.1792318]
[1773084889857,10.97784479,86.43,86.391,2.1792318]
[1773084890044,10.97784479,86.44,86.391,2.1792318]
[1773084890353,11.56885202,86.439,86.393,2.1792318]
[1773084890653,7.21331026,86.473,86.393,2.1792318]